fUST/lending_fUST_20250713
["ID","MTS","AMOUNT","RATE_DAILY","PERIOD"]
[371557639,1752349845224,-160.0,0.00018208,2]
[371557640,1752349845234,-160.0,0.00018208,2]
[371557641,1752349845243,-838.37930271,0.00018208,2]
[371557642,1752349845253,-230.64269914,0.00018208,2]
[371557643,1752349845263,-158.39689,0.00018258,2]
[371557644,1752349845273,-158.39689,0.00018339,2]
[371557645,1752349845283,-460.0,0.00018356,2]
[371557646,1752349845294,-460.0,0.00018356,2]
[371557647,1752349845304,-460.0,0.00018356,2]
[371557648,1752349845314,-460.0,0.00018356,2]
[371557649,1752349845323,-460.0,0.00018356,2]
[371557650,1752349845334,-460.0,0.00018356,2]
[371557651,1752349845343,-460.0,0.00018356,2]
[371557652,1752349845354,-691.96,0.00018356,2]
[371557653,1752349845363,-423.92,0.00018356,2]
[371557654,1752349845374,-460.0,0.00018356,2]
[371557655,1752349845384,-546.44,0.00018356,2]
[371557656,1752349845393,-1246.54,0.00018356,2]
[371557657,1752349845402,-460.0,0.00018356,2]
[371557658,1752349845411,-993.73,0.00018356,2]
[371557659,1752349845421,-1058.64,0.00018356,2]
[371557660,1752349845430,-460.0,0.00018356,2]
[371557661,1752349845439,-666.08,0.00018356,2]
[371557662,1752349845449,-633.47,0.00018356,2]
[371557663,1752349845458,-1362.13,0.00018356,2]
[371557664,1752349845469,-460.0,0.00018356,2]
[371557665,1752349845480,-460.0,0.00018356,2]
[371557666,1752349845490,-460.0,0.00018356,2]
[371557667,1752349845500,-940.97,0.00018356,2]
[371557668,1752349845514,-2041.79,0.00018356,2]
[371557669,1752349845524,-598.56,0.00018356,2]
[371557670,1752349845534,-460.0,0.00018356,2]
[371557671,1752349845544,-656.91,0.00018356,2]
[371557672,1752349845554,-460.0,0.00018356,2]
[371557673,1752349845564,-631.35,0.00018356,2]
[371557674,1752349845574,-460.0,0.00018356,2]
[371557675,1752349845583,-2000.0,0.00018416,2]
[371557676,1752349845593,-158.39689,0.0001842,2]
[371557677,1752349845603,-1313.00705948,0.00018452,2]
[371557678,1752349845612,-158.39689,0.00018501,2]
[371557679,1752349845622,-460.0,0.0001863,2]
[371557680,1752349845631,-460.0,0.0001863,2]
[371557681,1752349845642,-460.0,0.0001863,2]
[371557682,1752349845652,-460.0,0.0001863,2]
[371557683,1752349845661,-596.06,0.0001863,2]
[371557684,1752349845671,-460.0,0.0001863,2]
[371557685,1752349845682,-460.0,0.0001863,2]
[371557686,1752349845692,-691.96,0.0001863,2]
[371557687,1752349845703,-460.0,0.0001863,2]
[371557688,1752349845712,-1246.54,0.0001863,2]
[371557689,1752349845722,-460.0,0.0001863,2]
[371557690,1752349845734,-993.73,0.0001863,2]
[371557691,1752349845744,-1058.64,0.0001863,2]
[371557692,1752349845753,-460.0,0.0001863,2]
[371557693,1752349845763,-666.08,0.0001863,2]
[371557694,1752349845773,-633.47,0.0001863,2]
[371557695,1752349845782,-1362.13,0.0001863,2]
[371557696,1752349845792,-460.0,0.0001863,2]
[371557697,1752349845802,-460.0,0.0001863,2]
[371557698,1752349845812,-460.0,0.0001863,2]
[371557699,1752349845821,-940.97,0.0001863,2]
[371557700,1752349845831,-2041.79,0.0001863,2]
[371557701,1752349845840,-598.56,0.0001863,2]
[371557702,1752349845849,-460.0,0.0001863,2]
[371557703,1752349845858,-656.91,0.0001863,2]
[371557705,1752349845868,-604.91523312,0.0001863,2]
[371557706,1752349845876,-631.35,0.0001863,2]
[371557707,1752349845885,-460.0,0.0001863,2]
[371557708,1752349845895,-2000.0,0.00018726,2]
[371557709,1752349845905,-1313.00705948,0.00018762,2]
[371557710,1752349845914,-503.6555952,0.00018807,2]
[371557711,1752349845923,-679.9689388,0.000189,2]
[371557712,1752349845933,-460.0,0.00018904,2]
[371557713,1752349845942,-460.0,0.00018904,2]
[371557714,1752349845952,-460.0,0.00018904,2]
[371557715,1752349845961,-460.0,0.00018904,2]
[371557716,1752349845971,-460.0,0.00018904,2]
[371557717,1752349845980,-691.96,0.00018904,2]
[371557718,1752349845990,-460.0,0.00018904,2]
[371557719,1752349846000,-1246.54,0.00018904,2]
[371557720,1752349846010,-460.0,0.00018904,2]
[371557721,1752349846019,-993.73,0.00018904,2]
[371557722,1752349846028,-1058.64,0.00018904,2]
[371557723,1752349846038,-460.0,0.00018904,2]
[371557724,1752349846048,-666.08,0.00018904,2]
[371557725,1752349846058,-633.47,0.00018904,2]
[371557726,1752349846067,-1362.13,0.00018904,2]
[371557727,1752349846076,-460.0,0.00018904,2]
[371557728,1752349846086,-460.0,0.00018904,2]
[371557729,1752349846095,-368.54142682,0.00018904,2]
[371557730,1752349846105,-940.97,0.00018904,2]
[371557731,1752349846115,-2041.79,0.00018904,2]
[371557732,1752349846125,-598.56,0.00018904,2]
[371557733,1752349846133,-460.0,0.00018904,2]
[371557734,1752349846142,-656.91,0.00018904,2]
[371557735,1752349846152,-631.35,0.00018904,2]
[371557736,1752349846162,-460.0,0.00018904,2]
[371557737,1752349846171,-2500.0,0.00018964,2]
[371557738,1752349846181,-1313.00705948,0.00019072,2]
[371557739,1752349846190,-207.4,0.0001915,2]
[371557740,1752349846199,-151.0,0.0001915,2]
[371557741,1752349846208,-151.0,0.0001915,2]
[371557742,1752349846218,-151.0,0.0001915,2]
[371557743,1752349846228,-151.0,0.0001915,2]
[371557744,1752349846236,-151.0,0.0001915,2]
[371557745,1752349846246,-151.0,0.0001915,2]
[371557746,1752349846255,-151.0,0.0001915,2]
[371557747,1752349846265,-151.0,0.0001915,2]
[371557748,1752349846274,-151.0,0.0001915,2]
[371557750,1752349846283,-151.0,0.0001915,2]
[371557752,1752349846292,-151.0,0.0001915,2]
[371557754,1752349846303,-151.0,0.0001915,2]
[371557756,1752349846312,-151.0,0.0001915,2]
[371557758,1752349846322,-165.0,0.0001915,2]
[371557760,1752349846332,-151.0,0.0001915,2]
[371557762,1752349846341,-151.0,0.0001915,2]
[371557764,1752349846350,-500.0,0.00019173,2]
[371557766,1752349846359,-361.05703475,0.00019178,2]
[371557768,1752349846369,-299.21,0.00019178,2]
[371557770,1752349846378,-205.34,0.00019178,2]
[371557772,1752349846387,-460.0,0.00019178,2]
[371557773,1752349846397,-460.0,0.00019178,2]
[371557776,1752349846406,-691.96,0.00019178,2]
[371557777,1752349846415,-166.88,0.00019178,2]
[371557779,1752349846425,-1246.54,0.00019178,2]
[371557781,1752349846435,-460.0,0.00019178,2]
[371557783,1752349846444,-993.73,0.00019178,2]
[371557785,1752349846453,-1058.64,0.00019178,2]
[371557787,1752349846462,-460.0,0.00019178,2]
[371557789,1752349846472,-666.08,0.00019178,2]
[371557791,1752349846481,-633.47,0.00019178,2]
[371557805,1752349846609,-1362.13,0.00019178,2]
[371557807,1752349846619,-460.0,0.00019178,2]
[371557808,1752349846628,-460.0,0.00019178,2]
[371557809,1752349846640,-940.97,0.00019178,2]
[371557810,1752349846650,-2041.79,0.00019178,2]
[371557811,1752349846659,-598.56,0.00019178,2]
[371557812,1752349846669,-151.0,0.00019178,2]
[371557813,1752349846679,-151.0,0.00019178,2]
[371557814,1752349846688,-460.0,0.00019178,2]
[371557815,1752349846697,-656.91,0.00019178,2]
[371557816,1752349846707,-631.35,0.00019178,2]
[371557817,1752349846717,-460.0,0.00019178,2]
[371557818,1752349846727,-555.885102,0.00019178,2]
[371557819,1752349846737,-5000.0,0.00019178,2]
[371557820,1752349846746,-5000.0,0.00019178,2]
[371557821,1752349846755,-5000.0,0.00019178,2]
[371557822,1752349846765,-5000.0,0.00019178,2]
[371557823,1752349846774,-5000.0,0.00019178,2]
[371557824,1752349846784,-2010.35104184,0.00019178,2]
[371557825,1752349846797,-48154.9889144,0.00019178,2]
[371557826,1752349846807,-666.0,0.00019178,2]
[371557827,1752349846816,-487.54,0.000192,2]
[371557828,1752349846826,-151.85317382,0.00019205,2]
[371557829,1752349846838,-151.0,0.00019205,2]
[371557830,1752349846847,-151.0,0.00019233,2]
[371557831,1752349846857,-199.04772792,0.0001926,2]
[371557832,1752349846867,-2000.0,0.00019274,2]
[371557833,1752349846877,-151.0,0.00019329,2]
[371557834,1752349846887,-151.0,0.00019329,2]
[371557835,1752349846896,-151.0,0.00019329,2]
[371557836,1752349846906,-151.0,0.00019329,2]
[371557837,1752349846916,-151.0,0.00019329,2]
[371557838,1752349846926,-151.0,0.00019329,2]
[371557839,1752349846935,-151.0,0.00019329,2]
[371557840,1752349846944,-151.0,0.00019329,2]
[371557841,1752349846954,-151.0,0.00019329,2]
[371557842,1752349846963,-435.672734,0.00019329,2]
[371557843,1752349846972,-151.0,0.00019329,2]
[371557844,1752349846982,-435.672734,0.00019329,2]
[371557845,1752349846992,-151.0,0.00019329,2]
[371557846,1752349847002,-151.0,0.00019329,2]
[371557847,1752349847012,-151.0,0.00019329,2]
[371557848,1752349847022,-151.0,0.00019329,2]
[371557849,1752349847033,-151.0,0.00019329,2]
[371557850,1752349847043,-151.0,0.00019329,2]
[371557851,1752349847053,-151.0,0.00019329,2]
[371557852,1752349847063,-151.0,0.00019329,2]
[371557853,1752349847073,-564.472374,0.00019329,2]
[371557854,1752349847083,-564.472374,0.00019329,2]
[371557855,1752349847093,-151.0,0.00019329,2]
[371557856,1752349847103,-151.0,0.00019329,2]
[371557857,1752349847112,-151.0,0.00019329,2]
[371557858,1752349847122,-151.0,0.00019329,2]
[371557859,1752349847132,-151.0,0.00019329,2]
[371557860,1752349847141,-151.0,0.00019329,2]
[371557861,1752349847153,-151.0,0.00019329,2]
[371557862,1752349847163,-151.0,0.00019329,2]
[371557863,1752349847173,-151.0,0.00019329,2]
[371557864,1752349847182,-151.0,0.00019329,2]
[371557865,1752349847191,-151.0,0.00019329,2]
[371557866,1752349847201,-100000.0,0.00019329,2]
[371557867,1752349847210,-500.0,0.00019373,2]
[371557868,1752349847222,-501.36560506,0.00019373,2]
[371557869,1752349847232,-158.0,0.00019373,2]
[371557870,1752349847241,-160.0,0.00019373,2]
[371557871,1752349847250,-1313.00705948,0.00019383,2]
[371557872,1752349847259,-151.0,0.000194,2]
[371557873,1752349847269,-460.0,0.00019452,2]
[371557874,1752349847278,-460.0,0.00019452,2]
[371557875,1752349847287,-691.96,0.00019452,2]
[371557876,1752349847296,-1246.54,0.00019452,2]
[371557877,1752349847306,-460.0,0.00019452,2]
[371557878,1752349847315,-993.73,0.00019452,2]
[371557879,1752349847324,-1058.64,0.00019452,2]
[371557880,1752349847335,-355.98207366,0.00019452,2]
[371557881,1752349847345,-666.08,0.00019452,2]
[371557882,1752349847354,-633.47,0.00019452,2]
[371557883,1752349847364,-1362.13,0.00019452,2]
[371557884,1752349847374,-460.0,0.00019452,2]
[371557885,1752349847385,-191.1751897,0.00019452,2]
[371557886,1752349847394,-940.97,0.00019452,2]
[371557887,1752349847403,-2041.79,0.00019452,2]
[371557888,1752349847412,-598.56,0.00019452,2]
[371557889,1752349847422,-460.0,0.00019452,2]
[371557890,1752349847431,-656.91,0.00019452,2]
[371557891,1752349847441,-631.35,0.00019452,2]
[371557892,1752349847450,-460.0,0.00019452,2]
[371557893,1752349847460,-1218.0418451,0.00019466,2]
[371557894,1752349847469,-1626.11862193,0.00019512,2]
[371557895,1752349847479,-1313.00705948,0.00019693,2]
[371557896,1752349847489,-1000.0,0.00019721,2]
[371557897,1752349847499,-210.17316,0.00019726,2]
[371557898,1752349847512,-460.0,0.00019726,2]
[371557899,1752349847522,-460.0,0.00019726,2]
[371557900,1752349847532,-691.96,0.00019726,2]
[371557901,1752349847542,-1246.54,0.00019726,2]
[371557902,1752349847553,-460.0,0.00019726,2]
[371557903,1752349847563,-993.73,0.00019726,2]
[371557904,1752349847572,-1058.64,0.00019726,2]
[371557905,1752349847584,-666.08,0.00019726,2]
[371557906,1752349847594,-633.47,0.00019726,2]
[371557907,1752349847604,-1362.13,0.00019726,2]
[371557908,1752349847613,-460.0,0.00019726,2]
[371557909,1752349847623,-940.97,0.00019726,2]
[371557910,1752349847633,-2041.79,0.00019726,2]
[371557911,1752349847643,-598.56,0.00019726,2]
[371557912,1752349847652,-460.0,0.00019726,2]
[371557913,1752349847662,-656.91,0.00019726,2]
[371557914,1752349847671,-631.35,0.00019726,2]
[371557915,1752349847682,-460.0,0.00019726,2]
[371557916,1752349847691,-1000.0,0.00019921,2]
[371557917,1752349847701,-500.0,0.00019992,2]
[371557918,1752349847710,-151.0,0.0002,2]
[371557919,1752349847720,-151.0,0.0002,2]
[371557920,1752349847730,-220.523494,0.0002,2]
[371557921,1752349847740,-460.0,0.0002,2]
[371557922,1752349847749,-274.54262603,0.0002,2]
[371557923,1752349847758,-691.96,0.0002,2]
[371557924,1752349847768,-1246.54,0.0002,2]
[371557925,1752349847778,-460.0,0.0002,2]
[371557926,1752349847788,-993.73,0.0002,2]
[371557927,1752349847798,-1058.64,0.0002,2]
[371557928,1752349847807,-666.08,0.0002,2]
[371557929,1752349847817,-633.47,0.0002,2]
[371557930,1752349847826,-1362.13,0.0002,2]
[371557931,1752349847836,-460.0,0.0002,2]
[371557932,1752349847845,-940.97,0.0002,2]
[371557933,1752349847854,-2041.79,0.0002,2]
[371557934,1752349847864,-598.56,0.0002,2]
[371557935,1752349847874,-260.0,0.0002,2]
[371557936,1752349847885,-656.91,0.0002,2]
[371557937,1752349847894,-631.35,0.0002,2]
[371557938,1752349847903,-204.98,0.0002,2]
[371557939,1752349847912,-1313.00705948,0.00020003,2]
[371557940,1752349847922,-503.6555952,0.00020047,2]
[371557941,1752349847931,-500.0,0.00020121,2]
[371557942,1752349847940,-501.9477108,0.00020121,2]
[371557943,1752349847950,-500.0,0.00020121,2]
[371557944,1752349847960,-500.0,0.00020121,2]
[371557945,1752349847970,-500.0,0.00020121,2]
[371557946,1752349847979,-500.0,0.00020121,2]
[371557947,1752349847989,-500.0,0.00020121,2]
[371557948,1752349847999,-158.0,0.00020121,2]
[371557949,1752349848008,-500.0,0.00020121,2]
[371557950,1752349848018,-1000.0,0.00020268,2]
[371557951,1752349848027,-460.0,0.00020273,2]
[371557952,1752349848038,-691.96,0.00020273,2]
[371557953,1752349848048,-1246.54,0.00020273,2]
[371557954,1752349848058,-460.0,0.00020273,2]
[371557955,1752349848067,-993.73,0.00020273,2]
[371557956,1752349848076,-1058.64,0.00020273,2]
[371557957,1752349848086,-666.08,0.00020273,2]
[371557958,1752349848096,-633.47,0.00020273,2]
[371557959,1752349848106,-1362.13,0.00020273,2]
[371557960,1752349848115,-466.2953759,0.00020273,2]
[371557961,1752349848125,-940.97,0.00020273,2]
[371557962,1752349848135,-2041.79,0.00020273,2]
[371557963,1752349848145,-598.56,0.00020273,2]
[371557964,1752349848155,-656.91,0.00020273,2]
[371557965,1752349848165,-631.35,0.00020273,2]
[371557966,1752349848175,-5000.0,0.00020298,2]
[371557967,1752349848185,-151.0,0.000203,3]
[371557968,1752349848195,-1313.00705948,0.00020314,3]
[371557969,1752349848205,-857.4953208,0.00020329,2]
[371557970,1752349848214,-500.0,0.00020468,2]
[371557971,1752349848224,-215.0738,0.00020519,2]
[371557972,1752349848234,-460.0,0.00020547,2]
[371557973,1752349848243,-691.96,0.00020547,2]
[371557974,1752349848253,-1246.54,0.00020547,2]
[371557975,1752349848263,-460.0,0.00020547,2]
[371557976,1752349848272,-993.73,0.00020547,2]
[371557977,1752349848282,-1058.64,0.00020547,2]
[371557978,1752349848292,-666.08,0.00020547,2]
[371557979,1752349848302,-633.47,0.00020547,2]
[371557980,1752349848312,-1362.13,0.00020547,2]
[371557981,1752349848322,-940.97,0.00020547,2]
[371557982,1752349848331,-2041.79,0.00020547,2]
[371557983,1752349848341,-598.56,0.00020547,2]
[371557984,1752349848350,-656.91,0.00020547,2]
[371557985,1752349848360,-631.35,0.00020547,2]
[371557986,1752349848370,-593.403,0.00020563,2]
[371557987,1752349848379,-1313.00705948,0.00020624,3]
[371557988,1752349848388,-1000.0,0.00020669,2]
[371557989,1752349848398,-1000.0,0.00020669,2]
[371557990,1752349848407,-1000.0,0.00020669,2]
[371557991,1752349848417,-242420.66112898,0.00020739,2]
[371557992,1752349848427,-151.0,0.00020739,2]
[371557993,1752349848436,-151.0,0.00020739,2]
[371557994,1752349848446,-151.0,0.00020739,2]
[371557995,1752349848455,-220.523494,0.00020739,2]
[371557996,1752349848465,-237.432285,0.00020739,2]
[371557997,1752349848474,-151.0,0.00020739,2]
[371557998,1752349848484,-151.0,0.00020739,2]
[371557999,1752349848494,-185.450766,0.00020739,2]
[371558000,1752349848507,-151.0,0.00020739,2]
[371558001,1752349848517,-151.0,0.00020739,2]
[371558002,1752349848527,-151.0,0.00020739,2]
[371558003,1752349848537,-151.0,0.00020739,2]
[371558004,1752349848548,-151.0,0.00020739,2]
[371558005,1752349848558,-153.05155,0.00020739,2]
[371558006,1752349848567,-151.0,0.00020739,2]
[371558007,1752349848579,-151.0,0.00020739,2]
[371558008,1752349848590,-151.0,0.00020739,2]
[371558009,1752349848600,-151.0,0.00020739,2]
[371558010,1752349848610,-151.0,0.00020739,2]
[371558011,1752349848620,-151.0,0.00020739,2]
[371558012,1752349848629,-151.0,0.00020739,2]
[371558013,1752349848639,-151.0,0.00020739,2]
[371558014,1752349848649,-151.0,0.00020739,2]
[371558015,1752349848658,-151.0,0.00020739,2]
[371558016,1752349848668,-158.769012,0.00020739,2]
[371558017,1752349848678,-151.0,0.00020739,2]
[371558018,1752349848687,-151.0,0.00020739,2]
[371558019,1752349848698,-151.0,0.00020739,2]
[371558020,1752349848708,-151.0,0.00020739,2]
[371558021,1752349848717,-435.672734,0.00020739,2]
[371558022,1752349848726,-301.566349,0.00020739,2]
[371558023,1752349848737,-217.936345,0.00020739,2]
[371558024,1752349848747,-435.672734,0.00020739,2]
[371558025,1752349848756,-301.566349,0.00020739,2]
[371558026,1752349848766,-151.0,0.00020739,2]
[371558027,1752349848775,-151.0,0.00020739,2]
[371558028,1752349848785,-151.0,0.00020739,2]
[371558029,1752349848794,-154.041585,0.00020739,2]
[371558030,1752349848805,-151.0,0.00020739,2]
[371558031,1752349848814,-151.0,0.00020739,2]
[371558032,1752349848825,-151.0,0.00020739,2]
[371558033,1752349848835,-564.472374,0.00020739,2]
[371558034,1752349848844,-564.472374,0.00020739,2]
[371558035,1752349848855,-151.0,0.00020739,2]
[371558036,1752349848865,-151.0,0.00020739,2]
[371558037,1752349848874,-151.0,0.00020739,2]
[371558038,1752349848883,-151.0,0.00020739,2]
[371558039,1752349848893,-500.0,0.00020739,2]
[371558040,1752349848902,-488.82179306,0.00020739,2]
[371558041,1752349848912,-380.3920843,0.00020739,2]
[371558042,1752349848922,-500.0,0.00020739,2]
[371558043,1752349848931,-500.0,0.00020739,2]
[371558044,1752349848941,-204.64732396,0.00020739,2]
[371558045,1752349848952,-500.0,0.00020739,2]
[371558046,1752349848962,-500.0,0.00020739,2]
[371558047,1752349848971,-500.0,0.00020739,2]
[371558048,1752349848981,-500.0,0.00020739,2]
[371558049,1752349848991,-500.0,0.00020739,2]
[371558050,1752349849001,-500.0,0.00020739,2]
[371558051,1752349849011,-500.0,0.00020739,2]
[371558052,1752349849020,-500.0,0.00020739,2]
[371558053,1752349849030,-500.0,0.00020739,2]
[371558054,1752349849039,-500.0,0.00020739,2]
[371558055,1752349849048,-526.66856165,0.00020739,2]
[371558056,1752349849058,-500.0,0.00020739,2]
[371558057,1752349849068,-500.0,0.00020739,2]
[371558058,1752349849077,-500.0,0.00020739,2]
[371558059,1752349849087,-500.0,0.00020739,2]
[371558060,1752349849097,-500.0,0.00020739,2]
[371558061,1752349849107,-502.28699008,0.00020739,2]
[371558062,1752349849117,-500.0,0.00020739,2]
[371558063,1752349849126,-500.0,0.00020739,2]
[371558064,1752349849136,-500.0,0.00020739,2]
[371558065,1752349849150,-500.0,0.00020739,2]
[371558066,1752349849163,-500.0,0.00020739,2]
[371558067,1752349849173,-500.0,0.00020739,2]
[371558068,1752349849183,-500.0,0.00020739,2]
[371558069,1752349849193,-500.0,0.00020739,2]
[371558070,1752349849203,-500.0,0.00020739,2]
[371558071,1752349849212,-606.77143545,0.00020739,2]
[371558072,1752349849222,-195.91467167,0.00020739,2]
[371558073,1752349849484,-423.90135014,0.00016438,2]
[371558074,1752349849495,-151.0,0.00017068,2]
[371558075,1752349849507,-163.76634356,0.00020739,2]
[371558076,1752349849518,-140.31898477,0.00020739,2]
[371558077,1752349849527,-268.83851123,0.00020739,2]
[371558078,1752349849640,-231.16148877,0.00020739,2]
[371558079,1752349849650,-500.0,0.00020739,2]
[371558080,1752349849660,-500.0,0.00020739,2]
[371558081,1752349849670,-327.12867268,0.00020739,2]
[371558082,1752349849682,-172.87132732,0.00020739,2]
[371558083,1752349849692,-500.0,0.00020739,2]
[371558084,1752349849701,-242.73775303,0.00020739,2]
[371558085,1752349849713,-257.26224697,0.00020739,2]
[371558086,1752349849722,-146.16418764,0.00020739,2]
[371558087,1752349849897,-353.83581236,0.00020739,2]
[371558088,1752349849909,-500.0,0.00020739,2]
[371558089,1752349849919,-500.0,0.00020739,2]
[371558090,1752349849928,-500.0,0.00020739,2]
[371558091,1752349849940,-500.0,0.00020739,2]
[371558092,1752349849949,-500.0,0.00020739,2]
[371558093,1752349849962,-500.0,0.00020739,2]
[371558094,1752349849977,-500.0,0.00020739,2]
[371558095,1752349849989,-500.0,0.00020739,2]
[371558096,1752349850000,-500.0,0.00020739,2]
[371558097,1752349850011,-500.0,0.00020739,2]
[371558098,1752349850021,-500.0,0.00020739,2]
[371558099,1752349850032,-500.0,0.00020739,2]
[371558100,1752349850041,-151.0,0.00020739,2]
[371558101,1752349850051,-499.99999999,0.00020739,2]
[371558102,1752349850060,-500.0,0.00020739,2]
[371558103,1752349850069,-499.99999999,0.00020739,2]
[371558104,1752349850078,-500.0,0.00020739,2]
[371558105,1752349850088,-500.0,0.00020739,2]
[371558106,1752349850098,-449.16601495,0.00020739,2]
[371558107,1752349850107,-251.52940683,0.00020739,2]
[371558108,1752349850116,-152.079842,0.00020739,2]
[371558109,1752349850126,-151.0,0.00020739,2]
[371558110,1752349850135,-151.0,0.00020739,2]
[371558111,1752349850144,-151.0,0.000208,3]
[371558112,1752349850154,-3371.35,0.000208,2]
[371558113,1752349850163,-174.01264895,0.00020821,2]
[371558114,1752349850173,-691.96,0.00020821,2]
[371558115,1752349850182,-1246.54,0.00020821,2]
[371558116,1752349850192,-993.73,0.00020821,2]
[371558117,1752349850201,-1058.64,0.00020821,2]
[371558118,1752349850210,-666.08,0.00020821,2]
[371558119,1752349850220,-633.47,0.00020821,2]
[371558120,1752349850230,-1362.13,0.00020821,2]
[371558121,1752349850240,-940.97,0.00020821,2]
[371558122,1752349850250,-2041.79,0.00020821,2]
[371558123,1752349850259,-598.56,0.00020821,2]
[371558124,1752349850269,-656.91,0.00020821,2]
[371558125,1752349850279,-631.35,0.00020821,2]
[371558126,1752349850288,-1218.0418451,0.00020893,2]
[371558127,1752349850298,-487.54,0.000209,2]
[371558128,1752349850308,-1313.00705948,0.00020934,4]
[371558129,1752349850318,-894.24566642,0.00021,2]
[371558130,1752349850328,-14938.87133976,0.00021,5]
[371558136,1752349983215,87826.06749041,0.00016265,2]
[371558137,1752350071699,30034.47453514,0.000162,2]
[371558138,1752350113257,182.43172421,0.00015945,2]
[371558139,1752350322653,24900.0,0.00015643,2]
[371558140,1752350492524,213.3311114,0.00015652,2]
[371558142,1752350695923,421.6962264,0.00015652,2]
[371558170,1752350921480,165.862991,0.00013699,2]
[371558175,1752350981956,1483.3040563,0.00015708,2]
[371558221,1752351032363,-935.0,0.00016437,2]
[371558223,1752351032372,-40.42,0.00016437,2]
[371558225,1752351032384,-259.58,0.00016437,2]
[371558226,1752351032393,-825.96040766,0.00016437,2]
[371558229,1752351032416,-374.03959234,0.00016437,2]
[371558231,1752351032426,-460.0,0.00016438,2]
[371558233,1752351032435,-460.0,0.00016438,2]
[371558236,1752351032444,-224.11667972,0.00016438,2]
[371558238,1752351032454,-466.48323368,0.00016438,2]
[371558241,1752351032464,-460.0,0.00016438,2]
[371558244,1752351032474,-460.0,0.00016438,2]
[371558245,1752351032483,-460.0,0.00016438,2]
[371558247,1752351032492,-460.0,0.00016438,2]
[371558250,1752351032502,-460.0,0.00016438,2]
[371558253,1752351032511,-484.85765657,0.00016438,2]
[371558256,1752351032521,-460.0,0.00016438,2]
[371558258,1752351032530,-460.0,0.00016438,2]
[371558260,1752351032539,-460.0,0.00016438,2]
[371558262,1752351032549,-209.48986205,0.00016438,2]
[371558264,1752351032558,-460.0,0.00016438,2]
[371558266,1752351032569,-460.0,0.00016438,2]
[371558268,1752351032579,-460.0,0.00016438,2]
[371558269,1752351032588,-460.0,0.00016438,2]
[371558271,1752351032598,-460.0,0.00016438,2]
[371558273,1752351032607,-460.0,0.00016438,2]
[371558275,1752351032616,-460.0,0.00016438,2]
[371558277,1752351032626,-460.0,0.00016438,2]
[371558278,1752351032635,-460.0,0.00016438,2]
[371558280,1752351032645,-460.0,0.00016438,2]
[371558282,1752351032654,-460.0,0.00016438,2]
[371558283,1752351032664,-460.0,0.00016438,2]
[371558284,1752351032674,-460.0,0.00016438,2]
[371558285,1752351032683,-495.0958467,0.00016438,2]
[371558287,1752351032693,-460.0,0.00016438,2]
[371558288,1752351032702,-460.0,0.00016438,2]
[371558290,1752351032712,-458.44102975,0.00016438,2]